bitfinex/quotes_BTCUSD_20220218
["timestamp","ask_amount","ask_price","bid_price","bid_amount"]
[1645224391378,0.062605,39959.0,39953.0,0.1216566]
[1645224391579,0.062603,39960.0,39954.0,0.09517259]
[1645224391876,0.062603,39960.0,39953.0,0.1216566]
[1645224391877,0.07507004,39963.0,39956.0,0.09517259]
[1645224392075,0.07507004,39963.0,39953.0,0.1216566]
[1645224392676,0.07507004,39963.0,39953.0,0.12192307]
[1645224393077,0.00281487,39956.0,39953.0,0.12062564]
[1645224393274,0.00281487,39956.0,39953.0,0.12035917]
[1645224395724,0.07507004,39963.0,39960.0,0.00744442]
[1645224396127,0.07007004,39963.0,39960.0,0.00744442]
[1645224402831,0.07007004,39963.0,39961.0,0.00423639]
[1645224403033,0.07007004,39963.0,39962.0,0.00145302]
[1645224407781,0.07007004,39963.0,39961.0,0.00421393]
[1645224408785,0.07007004,39963.0,39960.0,0.00816096]
[1645224408984,0.13266904,39963.0,39960.0,0.00816096]
[1645224409836,0.0626,39962.0,39960.0,0.00816096]
[1645224410032,0.13266904,39963.0,39960.0,0.00816096]
[1645224410233,0.07007004,39963.0,39960.0,0.00816096]
[1645224410533,0.33408991,39963.0,39960.0,0.00744442]
[1645224412735,0.33408991,39963.0,39962.0,0.00123533]
[1645224412936,0.07007004,39963.0,39962.0,0.00123533]
[1645224413336,0.33408991,39963.0,39962.0,0.00123533]
[1645224414175,0.07007004,39963.0,39962.0,0.00123533]
[1645224416578,0.33408991,39963.0,39962.0,0.00123533]
[1645224416978,0.07007004,39963.0,39962.0,0.00123533]
[1645224417928,0.07007004,39963.0,39961.0,0.09861318]
[1645224420131,0.07007004,39963.0,39961.0,0.00344059]
[1645224421182,0.07007004,39963.0,39961.0,0.09861318]
[1645224421580,0.07007004,39963.0,39961.0,0.00344059]
[1645224423088,0.00105281,39962.0,39960.0,0.00744442]
[1645224423685,0.00105281,39962.0,39960.0,2.75078481]
[1645224424285,0.00105281,39962.0,39960.0,0.00744442]
[1645224425739,0.31700611,39968.0,39967.0,0.08361999]
[1645224426536,0.31700611,39969.0,39967.0,0.08361999]
[1645224426936,0.31700611,39968.0,39967.0,0.08361999]
[1645224429282,0.36984046,39970.0,39967.0,0.08361999]
[1645224429482,0.31718042,39968.0,39967.0,0.08361999]
[1645224430890,0.31718042,39968.0,39967.0,0.06367509]
[1645224432735,0.36984046,39970.0,39967.0,0.06367509]
[1645224432934,0.36984046,39969.0,39967.0,0.06367509]
[1645224433334,0.36984046,39970.0,39967.0,0.95061184]
[1645224433537,0.36984046,39970.0,39967.0,0.95187055]
[1645224434034,0.36984046,39969.0,39967.0,0.95187055]
[1645224435236,0.07506134,39968.0,39967.0,0.95187055]
[1645224437084,0.3921344,39968.0,39967.0,0.95187055]
[1645224437683,0.3921344,39968.0,39967.0,0.94943359]
[1645224440526,0.07506134,39968.0,39967.0,0.94943359]
[1645224441126,0.39207178,39968.0,39967.0,0.94943359]
[1645224441330,0.07506134,39968.0,39967.0,0.94943359]
[1645224442328,0.39207821,39968.0,39967.0,0.94943359]
[1645224442727,0.39207821,39968.0,39967.0,0.9506923]
[1645224444276,0.39208372,39968.0,39967.0,0.9506923]
[1645224445080,0.07506134,39968.0,39967.0,0.9506923]
[1645224445481,0.39212202,39968.0,39967.0,0.9506923]
[1645224447831,0.07571182,39968.0,39967.0,0.94943359]
[1645224448232,0.00065048,39968.0,39967.0,0.94943359]
[1645224448932,0.31769183,39968.0,39967.0,0.94943359]
[1645224450636,0.00065048,39968.0,39967.0,0.94943359]
[1645224450833,0.31769183,39968.0,39967.0,0.78444809]
[1645224451286,0.00065048,39968.0,39967.0,0.78444809]
[1645224452785,0.00100073,39968.0,39967.0,0.78444809]
[1645224453886,0.31812649,39968.0,39967.0,0.78444809]
[1645224454486,0.00100073,39968.0,39967.0,0.78444809]
[1645224456934,0.00100073,39968.0,39967.0,0.77944809]
[1645224461784,0.37084119,39968.0,39967.0,0.77944809]
[1645224462834,0.12781316,39968.0,39967.0,0.77944809]
[1645224463035,0.12681243,39968.0,39967.0,0.77944809]
[1645224463234,0.12681243,39968.0,39967.0,0.78188516]
[1645224467789,0.12681243,39968.0,39967.0,0.78070685]
[1645224470831,0.12681243,39968.0,39967.0,0.67236038]
[1645224474578,0.37484302,39968.0,39967.0,0.67236038]
[1645224474978,0.12247603,39968.0,39967.0,0.67236038]
[1645224477429,0.1221359,39968.0,39967.0,0.67236038]
[1645224477732,0.1221359,39968.0,39967.0,0.67110162]
[1645224477929,0.12285865,39968.0,39967.0,0.67110162]
[1645224481286,0.37512791,39968.0,39967.0,0.67110162]
[1645224482289,0.10169574,39968.0,39967.0,0.67110162]
[1645224482689,0.37516576,39968.0,39967.0,0.67110162]
[1645224482892,0.00549034,39968.0,39967.0,0.67110162]
[1645224486637,0.08335364,39968.0,39967.0,0.67110162]
[1645224493133,0.08235058,39968.0,39967.0,0.67425143]
[1645224493337,0.08235058,39968.0,39967.0,0.67212593]
[1645224494536,0.37458748,39968.0,39967.0,0.67212593]
[1645224495138,0.00448728,39968.0,39967.0,0.67212593]
[1645224496286,0.32171793,39968.0,39967.0,0.67212593]
[1645224496685,0.37458748,39968.0,39967.0,0.67212593]
[1645224496887,0.00448728,39968.0,39967.0,0.67212593]
[1645224497486,0.37458748,39968.0,39967.0,0.67212593]
[1645224497686,0.00448728,39968.0,39967.0,0.67212593]
[1645224497888,0.37458748,39968.0,39967.0,0.67360043]
[1645224498287,0.32174582,39968.0,39967.0,0.68225443]
[1645224498492,0.3701002,39968.0,39967.0,0.67360043]
[1645224499390,0.08405833,39968.0,39967.0,0.67360043]
[1645224502939,0.08405833,39968.0,39967.0,0.67212593]
[1645224505186,0.08405833,39968.0,39967.0,0.66914593]
[1645224506086,0.12564092,39969.0,39967.0,0.66914593]
[1645224506291,0.18174092,39969.0,39967.0,0.49032593]
[1645224506487,0.1,39968.0,39967.0,0.46918593]
[1645224506685,0.38208092,39969.0,39967.0,0.46918593]
[1645224506686,0.37598092,39969.0,39967.0,0.46918593]
[1645224506885,0.0561,39968.0,39967.0,0.46918593]
[1645224508038,0.05738693,39968.0,39967.0,0.4675696]
[1645224509033,0.05284757,39968.0,39967.0,0.4675696]
[1645224512986,0.02926678,39968.0,39967.0,0.4675696]
[1645224516736,0.04317879,39968.0,39967.0,0.4675696]
[1645224517936,0.03410285,39968.0,39967.0,0.4675696]
[1645224523046,0.01913411,39968.0,39967.0,0.47059861]
[1645224528193,0.01913411,39968.0,39967.0,0.46912856]
[1645224529094,0.11913411,39968.0,39967.0,0.46912856]
[1645224529497,0.11913411,39968.0,39967.0,0.44889856]
[1645224529737,0.11913411,39968.0,39967.0,0.43162856]
[1645224529938,0.11913411,39968.0,39967.0,0.42534856]
[1645224529939,0.16913411,39968.0,39967.0,0.42534856]
[1645224530138,0.16913411,39968.0,39967.0,0.38124371]
[1645224530338,0.55448234,39968.0,39967.0,0.38124371]
[1645224530540,1.25618234,39968.0,39967.0,0.36240371]
[1645224530738,1.35618234,39968.0,39967.0,0.34670371]
[1645224530938,1.5182012,39968.0,39967.0,0.34356371]
[1645224531138,2.0182012,39968.0,39967.0,0.33885371]
[1645224531540,2.0182012,39968.0,39967.0,0.33728371]
[1645224532143,2.0182012,39968.0,39967.0,0.33571371]
[1645224533989,2.7808012,39968.0,39967.0,0.30669371]
[1645224534290,2.7808012,39968.0,39962.0,0.01132769]
[1645224534291,0.7626,39964.0,39962.0,0.00274369]
[1645224534490,0.7626,39964.0,39960.0,0.00022965]
[1645224534491,0.7626,39962.0,39960.0,0.00022965]
[1645224534694,0.85824066,39963.0,39960.0,0.00022965]
[1645224534695,0.91914066,39961.0,39960.0,0.00022965]
[1645224534889,1.11914066,39961.0,39960.0,0.00022965]
[1645224535190,0.062625,39958.0,39956.0,0.008584]
[1645224535390,0.062626,39956.0,39955.0,0.008584]
[1645224535693,0.11916666,39956.0,39954.0,0.00026647]
[1645224535892,0.11916666,39956.0,39953.0,0.00879194]
[1645224536190,0.00044066,39954.0,39953.0,0.00020794]
[1645224536389,0.11916766,39954.0,39953.0,0.00026647]
[1645224536589,0.18179379,39954.0,39952.0,0.00885047]
[1645224536791,0.18179379,39954.0,39953.0,0.00026647]
[1645224536991,0.18179379,39954.0,39952.0,0.00885047]
[1645224539039,0.28179379,39954.0,39952.0,0.00885047]
[1645224539238,0.28179379,39954.0,39952.0,0.00026647]
[1645224539538,0.062632,39950.0,39949.0,0.008584]
[1645224539741,0.062632,39950.0,39947.0,0.008584]
[1645224540038,0.0561,39949.0,39947.0,0.008584]
[1645224540236,0.0561,39949.0,39937.0,0.3]
[1645224540237,0.00044066,39948.0,39946.0,0.00026647]
[1645224540438,0.062637,39947.0,39944.0,0.00026647]
[1645224541089,0.062637,39947.0,39943.0,0.008584]
[1645224541090,0.062637,39946.0,39943.0,0.00885047]
[1645224541391,0.00044066,39944.0,39943.0,0.008584]
[1645224541591,0.00044066,39944.0,39942.0,0.00026647]
[1645224541787,0.00044066,39944.0,39941.0,0.018584]
[1645224542292,0.00044066,39942.0,39941.0,0.018584]
[1645224542488,0.06308366,39942.0,39941.0,0.01]
[1645224542689,0.06308366,39942.0,39941.0,0.01026647]
[1645224542889,0.06308366,39942.0,39941.0,0.01]
[1645224543790,0.26918366,39942.0,39941.0,0.0001]
[1645224543991,0.26918366,39942.0,39927.0,0.3]
[1645224543992,0.0157636,39940.0,39934.0,0.008584]
[1645224544191,0.0157636,39940.0,39933.0,0.008584]
[1645224544192,0.06310066,39935.0,39933.0,0.008584]
[1645224544392,0.06310066,39935.0,39922.0,0.30026647]
[1645224544393,0.0656,39934.0,39922.0,0.30026647]
[1645224544591,0.0656,39934.0,39929.0,0.00930147]
[1645224544840,0.0656,39934.0,39929.0,0.009035]
[1645224545438,0.00044066,39930.0,39929.0,0.009035]
[1645224545637,0.31329286,39933.0,39932.0,0.00088131]
[1645224545837,0.36939286,39933.0,39932.0,0.00088131]
[1645224551092,0.36939286,39933.0,39932.0,0.00114778]
[1645224552437,0.36939286,39933.0,39932.0,0.00088131]
[1645224553038,0.36939286,39933.0,39932.0,0.00232188]
[1645224553237,0.36939286,39933.0,39932.0,0.00258835]
[1645224555993,0.36939286,39933.0,39932.0,0.86470054]
[1645224556991,0.244076,39933.0,39932.0,0.86470054]
[1645224557989,0.244076,39933.0,39932.0,0.86604898]
[1645224560639,0.0561,39933.0,39932.0,0.86604898]
[1645224560841,0.0095,39934.0,39932.0,0.86604898]
[1645224561039,0.0561,39938.0,39933.0,0.010219]
[1645224561238,0.1061,39938.0,39935.0,0.008895]
[1645224561739,0.125279,39939.0,39935.0,0.008895]
[1645224563239,0.125279,39939.0,39937.0,0.008765]
[1645224563503,0.125279,39939.0,39938.0,0.008737]
[1645224563691,0.125279,39939.0,39938.0,0.00900347]
[1645224563692,0.062638,39939.0,39938.0,0.00900347]
[1645224565393,0.062638,39939.0,39935.0,0.00166347]
[1645224566191,0.125277,39939.0,39932.0,0.86578251]
[1645224566991,0.18791882,39939.0,39932.0,0.86578251]
[1645224567739,0.125277,39939.0,39932.0,0.86578251]
[1645224568142,0.125277,39939.0,39938.0,0.00137736]
[1645224569240,0.0095,39940.0,39938.0,0.00137736]
[1645224569442,0.1,39939.0,39938.0,0.00137736]
[1645224569639,0.1656,39940.0,39938.0,0.00137736]
[1645224569640,0.1156,39940.0,39938.0,0.00137736]
[1645224569842,0.05,39939.0,39938.0,0.00137736]
[1645224570244,0.22824117,39940.0,39938.0,0.00137736]
[1645224570543,0.418737,39939.0,39938.0,0.00137736]
[1645224570997,0.518737,39939.0,39938.0,0.00137736]
[1645224572385,0.218737,39939.0,39938.0,0.00137736]
[1645224572788,0.12242603,39939.0,39932.0,0.8629935]
[1645224572985,0.36264999,39938.0,39932.0,0.8629935]
[1645224573185,0.06265,39935.0,39932.0,0.8629935]
[1645224574589,0.125301,39935.0,39932.0,0.8629935]
[1645224574837,0.062651,39933.0,39932.0,0.8629935]
[1645224575837,0.11265,39935.0,39932.0,0.8629935]
[1645224576237,0.06265,39935.0,39932.0,0.8629935]
[1645224577736,0.00117947,39933.0,39932.0,0.8629935]
[1645224578136,0.06382747,39933.0,39932.0,0.8629935]
[1645224582244,0.00117947,39933.0,39932.0,0.8629935]
[1645224582847,0.11265,39935.0,39932.0,0.86573801]
[1645224583345,0.06265,39935.0,39932.0,0.86573801]
[1645224583945,0.07512475,39934.0,39932.0,0.86573801]
[1645224587889,0.07512475,39934.0,39932.0,0.86440745]
[1645224588091,0.062649,39933.0,39932.0,0.86440745]
[1645224589394,0.07512475,39934.0,39932.0,0.96440745]
[1645224589594,0.134776,39940.0,39934.0,0.25024949]
[1645224589841,0.0095,39940.0,39934.0,0.25024949]
[1645224592139,0.072136,39940.0,39934.0,0.25024949]
[1645224592741,0.134774,39940.0,39934.0,0.10024949]
[1645224597540,0.08369609,39941.0,39934.0,0.10024949]
[1645224597541,0.07511209,39941.0,39934.0,0.10024949]
[1645224597738,0.19439297,39942.0,39934.0,0.10051211]
[1645224597938,0.19439297,39942.0,39934.0,0.10024949]
[1645224598239,0.19439297,39942.0,39936.0,0.00137271]
[1645224598437,0.0751132,39940.0,39936.0,0.00137271]
[1645224598639,0.1377492,39940.0,39936.0,0.00163533]
[1645224600637,0.062636,39940.0,39936.0,0.00163533]
[1645224601693,0.062636,39940.0,39934.0,0.06493409]
[1645224602991,0.06585627,39940.0,39934.0,0.06493409]
[1645224603191,0.00110022,39939.0,39934.0,0.06493409]
[1645224603792,0.06374022,39939.0,39934.0,0.06493409]
[1645224607942,0.00248617,39938.0,39934.0,0.01493409]
[1645224611396,0.062645,39936.0,39934.0,0.01493409]
[1645224611593,0.0623096,39936.0,39934.0,0.01493409]
[1645224611794,0.0623096,39936.0,39934.0,0.00593409]
[1645224611997,0.26079241,39936.0,39932.0,0.81892759]
[1645224613040,0.26079241,39936.0,39935.0,0.00262457]
[1645224614045,0.0623096,39936.0,39935.0,0.00262457]
[1645224614940,0.0623096,39936.0,39935.0,0.00132076]
[1645224615140,0.062648,39935.0,39932.0,0.77155216]
[1645224615341,0.062649,39934.0,39932.0,0.77155216]
[1645224616204,0.072868,39934.0,39932.0,0.77155216]
[1645224617209,0.062649,39934.0,39932.0,0.77155216]
[1645224622145,0.362649,39934.0,39932.0,0.77155216]
[1645224622448,0.0561,39933.0,39932.0,0.77155216]
[1645224622844,0.0561,39933.0,39932.0,0.77285771]
[1645224624711,0.0561,39933.0,39932.0,0.67285771]
[1645224628044,0.0561,39933.0,39932.0,0.6758676]
[1645224628848,0.3561,39933.0,39932.0,0.6758676]
[1645224631395,2.59286136,39932.0,39931.0,0.0009706]
[1645224633297,2.59286136,39932.0,39925.0,0.00026004]
[1645224633494,0.062653,39930.0,39923.0,0.00026004]
[1645224633995,0.062653,39930.0,39924.0,0.00022681]
[1645224634495,0.19157702,39928.0,39924.0,0.00022681]
[1645224634739,0.19157702,39928.0,39923.0,0.00026004]
[1645224634941,0.19157702,39928.0,39922.0,0.00946004]
[1645224637947,0.072876,39927.0,39922.0,0.00946004]
[1645224638147,0.010219,39926.0,39922.0,0.00946004]
[1645224638593,0.010219,39926.0,39922.0,0.00026004]
[1645224638792,0.010219,39926.0,39921.0,0.0111]
[1645224639393,0.0561,39927.0,39926.0,0.030657]
[1645224639593,0.19157702,39928.0,39926.0,0.030657]
[1645224639994,0.20179602,39928.0,39926.0,0.030657]
[1645224640996,0.062657,39927.0,39926.0,0.030657]
[1645224643940,0.062657,39927.0,39926.0,0.029219]
[1645224644340,0.1899933,39931.0,39926.0,0.025919]
[1645224644542,0.062653,39930.0,39926.0,0.025919]
[1645224645443,0.23731886,39929.0,39926.0,0.025919]
[1645224647791,0.23731886,39929.0,39926.0,0.02870042]
[1645224647992,0.23731886,39929.0,39926.0,0.02684584]
[1645224649293,0.28731886,39929.0,39926.0,0.02684584]
[1645224649493,0.23731886,39929.0,39926.0,0.02684584]
[1645224651144,0.062661,39927.0,39926.0,0.02684584]
[1645224651943,0.23731886,39929.0,39926.0,0.02684584]
[1645224652543,0.07513765,39927.0,39926.0,0.02684584]
[1645224652948,0.07513765,39927.0,39926.0,0.02540042]
[1645224658046,0.07890246,39927.0,39926.0,0.02540042]
[1645224658946,0.14155946,39927.0,39926.0,0.02540042]
[1645224663390,0.14359617,39927.0,39926.0,0.02540042]
[1645224663592,0.08093917,39927.0,39926.0,0.02540042]
[1645224665143,0.14359717,39927.0,39926.0,0.02540042]
[1645224668145,0.08093917,39927.0,39926.0,0.02540042]
[1645224669002,3.24332854,39926.0,39922.0,0.00026004]
[1645224669301,3.24332854,39926.0,39921.0,0.01136004]
[1645224669698,3.24332854,39926.0,39921.0,0.31136004]
[1645224670102,3.24332854,39926.0,39921.0,0.01136004]
[1645224670499,3.24332854,39926.0,39922.0,0.43527]
[1645224670703,2.67591195,39926.0,39922.0,0.00026004]
[1645224670900,2.67591195,39926.0,39921.0,0.31136004]
[1645224671502,2.67591195,39926.0,39921.0,1.07396004]
[1645224671704,2.67591195,39926.0,39922.0,0.00026004]
[1645224672342,2.67591195,39926.0,39923.0,0.33527]
[1645224672641,2.67591195,39926.0,39922.0,0.00026004]
[1645224673244,2.67591195,39926.0,39925.0,0.00154931]
[1645224677691,2.67591195,39926.0,39925.0,0.00321452]
[1645224683152,2.67577015,39926.0,39925.0,0.00321452]
[1645224687544,2.67077015,39926.0,39925.0,0.00321452]
[1645224693097,2.67077015,39926.0,39925.0,0.00166521]
[1645224693297,2.67484268,39926.0,39921.0,0.77396004]
[1645224693497,2.68506168,39926.0,39922.0,0.33527]
[1645224694396,2.68506168,39926.0,39922.0,0.63527]
[1645224694598,2.68506168,39926.0,39923.0,0.33527]
[1645224695047,2.68506168,39926.0,39922.0,0.3]
[1645224695250,2.68506168,39926.0,39922.0,1.0626]
[1645224695449,2.68506168,39926.0,39923.0,0.33527]
[1645224695649,2.68506168,39926.0,39925.0,0.81894817]
[1645224696050,2.67484268,39926.0,39925.0,1.15421817]
[1645224696250,2.67484268,39926.0,39925.0,2.31681817]
[1645224696452,2.67484268,39926.0,39925.0,2.68531355]
[1645224696652,2.67484268,39926.0,39925.0,2.37291817]
[1645224696851,2.67484268,39926.0,39925.0,2.47291817]
[1645224697051,2.67484268,39926.0,39925.0,2.73841239]
[1645224697253,2.67484268,39926.0,39925.0,2.47291817]
[1645224697254,2.67348268,39926.0,39925.0,2.47291817]
[1645224697451,2.67348268,39926.0,39925.0,2.73848911]
[1645224697650,1.9644005,39926.0,39925.0,2.47291817]
[1645224697854,1.9644005,39926.0,39925.0,2.57291817]
[1645224698253,1.9630705,39926.0,39925.0,3.27461817]
[1645224698523,0.24590286,39929.0,39928.0,0.9126]
[1645224698524,0.23731886,39929.0,39928.0,0.9126]
[1645224698716,0.07510571,39944.0,39928.0,2.65567]
[1645224698717,0.37220942,39944.0,39928.0,2.65567]
[1645224698916,0.008584,39935.0,39931.0,2.24957]
[1645224699116,0.008584,39935.0,39931.0,2.35567]
[1645224699316,0.008584,39937.0,39932.0,0.01071259]
[1645224699516,0.1893,39953.0,39936.0,0.8126]
[1645224699517,0.008584,39940.0,39936.0,0.8126]
[1645224699715,0.008584,39942.0,39941.0,0.33527]
[1645224699915,0.008584,39945.0,39941.0,1.25767]
[1645224700119,0.008584,39946.0,39944.0,1.576889]
[1645224700316,0.010219,39950.0,39949.0,0.2]
[1645224700522,0.60445434,39962.0,39949.0,0.2]
[1645224700523,0.008584,39952.0,39951.0,0.7626]
[1645224700716,0.0003279,39953.0,39952.0,1.09787]
[1645224700917,0.008584,39955.0,39952.0,1.49787]
[1645224701116,0.0105469,39957.0,39954.0,0.7626]
[1645224701117,0.008584,39956.0,39954.0,0.7626]
[1645224701317,0.0089119,39956.0,39955.0,1.15397]
[1645224701522,0.008584,39956.0,39955.0,1.15397]
[1645224702348,0.008584,39956.0,39955.0,1.20397]
[1645224702548,0.49946031,39962.0,39955.0,1.20397]
[1645224702549,0.0003279,39957.0,39955.0,1.20397]
[1645224702849,0.008584,39957.0,39955.0,1.15397]
[1645224703348,0.0089119,39957.0,39955.0,1.45397]
[1645224703549,0.0089119,39957.0,39956.0,1.0626]
[1645224703550,0.0003279,39957.0,39956.0,1.0626]
[1645224703850,0.181,39962.0,39957.0,0.33527]
[1645224703851,0.008584,39960.0,39957.0,0.33527]
[1645224704051,0.009348,39960.0,39957.0,0.33527]
[1645224704250,0.0003279,39960.0,39959.0,0.33527]
[1645224704451,0.0003279,39961.0,39959.0,0.33527]
[1645224704651,0.0003279,39961.0,39959.0,0.39137]
[1645224705050,0.181,39962.0,39959.0,0.39137]
[1645224705250,0.1813279,39962.0,39959.0,0.39137]
[1645224705450,0.181,39962.0,39959.0,0.39137]
[1645224705653,0.1813279,39962.0,39959.0,0.39137]
[1645224706110,0.181,39962.0,39959.0,0.39137]
[1645224707511,0.0003279,39966.0,39961.0,0.33527]
[1645224707710,0.0011,39967.0,39962.0,0.0561]
[1645224707711,0.0003279,39964.0,39962.0,0.0561]
[1645224707912,0.0003279,39966.0,39963.0,0.39137]
[1645224708113,0.0014279,39967.0,39965.0,0.33527]
[1645224708318,0.0003279,39966.0,39965.0,0.33527]
[1645224708510,0.0011,39967.0,39965.0,0.39137]
[1645224708511,0.0014279,39967.0,39965.0,0.39137]
[1645224710554,0.0014279,39967.0,39965.0,0.44137]
[1645224711958,0.0014279,39967.0,39966.0,0.33527]
[1645224712157,0.0011,39967.0,39966.0,0.39137]
[1645224712759,0.0011,39967.0,39966.0,0.39428935]
[1645224715898,0.0011,39967.0,39966.0,0.05901935]
[1645224716203,0.0011,39967.0,39966.0,0.39428935]
[1645224717648,0.0011,39967.0,39966.0,0.1831523]
[1645224718247,0.0011,39967.0,39966.0,0.33527]
[1645224718649,0.00308866,39967.0,39966.0,0.335569]
[1645224718852,0.00308866,39967.0,39966.0,0.235569]
[1645224719250,0.00308866,39967.0,39966.0,0.335569]
[1645224719650,0.00308866,39967.0,39966.0,0.391669]
[1645224723296,0.00482191,39967.0,39966.0,0.391669]
[1645224726757,0.00482191,39967.0,39966.0,0.541669]
[1645224726956,0.00482191,39967.0,39966.0,0.891669]
[1645224727353,0.00482191,39967.0,39966.0,0.841669]
[1645224728353,0.00482191,39967.0,39966.0,1.604269]
[1645224729194,0.00482191,39967.0,39966.0,1.304269]
[1645224729594,0.00482191,39967.0,39966.0,1.354269]
[1645224729797,0.00267074,39968.0,39967.0,0.87051484]
[1645224729996,0.00234284,39968.0,39967.0,0.49958384]
[1645224730198,0.00234284,39968.0,39967.0,0.79797346]
[1645224730397,0.00234284,39968.0,39967.0,0.59958384]
[1645224731599,0.00234284,39968.0,39967.0,0.06401484]
[1645224731803,0.06256184,39968.0,39967.0,0.00791484]
[1645224732007,0.61666784,39968.0,39967.0,0.00791484]
[1645224732246,0.1,39967.0,39959.0,0.0091]
[1645224732448,0.010219,39962.0,39950.0,0.335569]
[1645224732650,0.010219,39961.0,39950.0,0.335569]
[1645224732848,0.010219,39961.0,39952.0,0.335569]
[1645224733050,0.0105469,39961.0,39952.0,0.335569]
[1645224733249,0.0105469,39961.0,39952.0,0.535569]
[1645224733450,0.0105469,39961.0,39955.0,0.05]
[1645224733453,0.0003279,39961.0,39955.0,0.05]
[1645224733653,0.065895,39970.0,39956.0,0.335569]
[1645224733654,0.0003279,39964.0,39956.0,0.335569]
[1645224733853,0.0003279,39965.0,39959.0,0.06256842]
[1645224734053,0.0003279,39967.0,39960.0,0.344569]
[1645224734254,0.0014279,39968.0,39960.0,0.444569]
[1645224734454,0.0003279,39967.0,39960.0,1.55237448]
[1645224734655,0.0003279,39967.0,39961.0,0.062569]
[1645224734851,0.0003279,39967.0,39962.0,0.335569]
[1645224735052,0.0014279,39968.0,39962.0,0.385569]
[1645224735251,0.0003279,39967.0,39962.0,0.385569]
[1645224735454,0.00189502,39969.0,39963.0,0.1]
[1645224735651,0.00189502,39969.0,39961.0,0.062569]
[1645224735853,0.01211402,39969.0,39962.0,0.335569]
[1645224736095,0.00189502,39969.0,39961.0,0.062569]
[1645224736296,0.00189502,39969.0,39962.0,0.385569]
[1645224736597,0.05189502,39969.0,39962.0,0.385569]
[1645224737797,0.010219,39968.0,39962.0,0.385569]
[1645224739398,0.00189502,39969.0,39962.0,0.685569]
[1645224739598,0.00189502,39969.0,39963.0,0.0561]
[1645224739849,0.00189502,39969.0,39964.0,0.335569]
[1645224740046,0.00189502,39969.0,39965.0,0.0561]
[1645224740246,0.05189502,39969.0,39966.0,0.335569]
[1645224740445,0.00189502,39969.0,39966.0,0.16833546]
[1645224742252,0.00189502,39969.0,39968.0,0.335569]
[1645224742451,0.00189502,39969.0,39968.0,1.093369]
[1645224742647,0.00189502,39969.0,39968.0,1.193369]
[1645224742848,0.00189502,39969.0,39968.0,1.43249287]
[1645224744806,0.00189502,39969.0,39968.0,1.38249287]
[1645224745409,0.00189502,39969.0,39968.0,2.14699287]
[1645224745810,0.00189502,39969.0,39968.0,2.19699287]
[1645224747848,0.00189502,39969.0,39968.0,2.14699287]
[1645224748051,0.00484111,39969.0,39968.0,2.19699287]
[1645224749449,0.00484111,39969.0,39968.0,2.14699287]
[1645224749650,0.00224111,39970.0,39969.0,0.15]
[1645224749851,4.111e-05,39971.0,39969.0,1.875145]
[1645224750053,4.111e-05,39971.0,39970.0,1.150052]
[1645224750256,4.111e-05,39971.0,39970.0,1.907852]
[1645224750452,0.0022,39975.0,39970.0,2.007852]
[1645224750651,0.0022,39975.0,39973.0,1.851752]
[1645224750853,0.0022,39975.0,39974.0,1.336752]
[1645224751098,0.0022,39975.0,39974.0,2.094552]
[1645224751299,0.0022,39975.0,39974.0,2.194552]
[1645224754949,0.0022,39975.0,39974.0,1.957852]
[1645224755352,0.0022,39975.0,39974.0,2.18237489]
[1645224757352,0.0022,39975.0,39974.0,1.957852]
[1645224757555,0.0022,39975.0,39974.0,1.093352]
[1645224757754,0.012419,39975.0,39974.0,0.391652]
[1645224758353,0.00539859,39975.0,39974.0,0.391652]
[1645224758800,0.01561759,39975.0,39974.0,0.391652]
[1645224759002,0.00539859,39975.0,39974.0,0.391652]
[1645224759799,0.00539859,39975.0,39974.0,0.18194386]
[1645224761500,0.00539859,39975.0,39974.0,0.94644386]
[1645224761901,0.00539859,39975.0,39974.0,1.04644386]
[1645224762749,0.00539859,39975.0,39974.0,1.28880542]
[1645224763248,0.0022,39975.0,39974.0,1.04802874]
[1645224764347,0.0022,39975.0,39974.0,1.27028194]
[1645224764949,0.03915355,39975.0,39974.0,1.27028194]
[1645224768702,0.03695355,39975.0,39974.0,1.32028194]
[1645224768901,0.03695355,39975.0,39974.0,1.43254385]
[1645224769101,0.03695355,39975.0,39974.0,1.42028194]
[1645224769300,0.03695355,39975.0,39974.0,1.37028194]
[1645224769748,0.03695355,39975.0,39974.0,2.07198194]
[1645224770152,0.00142757,39976.0,39975.0,0.335552]
[1645224770351,0.00142757,39976.0,39975.0,2.257852]
[1645224770352,0.0011,39976.0,39975.0,2.257852]
[1645224770957,0.0011,39976.0,39975.0,1.957852]
[1645224773809,0.0011,39976.0,39975.0,1.256152]
[1645224774010,0.0011,39976.0,39975.0,1.265552]
[1645224774710,0.0011,39976.0,39975.0,0.501052]
[1645224774910,0.020318,39976.0,39975.0,0.444952]
[1645224776111,0.010099,39976.0,39975.0,0.444952]
[1645224777551,0.01193411,39976.0,39975.0,0.444952]
[1645224777751,0.00293511,39976.0,39975.0,0.444952]
[1645224778853,0.00293511,39976.0,39975.0,1.209452]
[1645224779054,0.00293511,39976.0,39975.0,0.444952]
[1645224782901,0.0042551,39976.0,39975.0,0.444952]
[1645224783704,0.0144741,39976.0,39975.0,0.444952]
[1645224784101,0.0644741,39976.0,39975.0,0.444952]
[1645224784501,0.0542551,39976.0,39975.0,0.444952]
[1645224784750,0.0542551,39976.0,39975.0,0.435552]
[1645224785050,0.0644741,39976.0,39975.0,0.435552]
[1645224786451,0.0042551,39976.0,39975.0,0.435552]
[1645224788805,0.0042551,39976.0,39975.0,0.735552]
[1645224789002,0.0042551,39976.0,39975.0,0.791652]
[1645224789801,0.31846031,39984.0,39980.0,0.11705298]
[1645224790001,0.0033,39981.0,39980.0,0.45257398]
[1645224790400,0.0033,39981.0,39980.0,0.55257398]
[1645224790602,0.013519,39981.0,39980.0,0.55257398]
[1645224792253,0.023738,39981.0,39980.0,0.45257398]
[1645224792454,0.013519,39981.0,39980.0,0.45257398]
[1645224792654,0.0033,39981.0,39980.0,0.45257398]
[1645224795257,0.0033,39981.0,39980.0,0.55257398]
[1645224795459,0.0033,39981.0,39980.0,0.60867398]
[1645224797407,0.0033,39981.0,39980.0,1.58752311]
[1645224798007,0.0033,39981.0,39980.0,1.58934185]
[1645224799507,0.0033,39981.0,39980.0,0.82484185]
[1645224800652,0.0033,39981.0,39980.0,1.58934185]
[1645224803801,0.0033,39981.0,39980.0,1.37499272]
[1645224805700,0.0033,39981.0,39980.0,0.61049272]
[1645224806199,0.0033,39981.0,39980.0,1.37499272]
[1645224807650,0.00554353,39981.0,39980.0,1.37317398]
[1645224808049,0.00054353,39981.0,39980.0,1.37317398]
[1645224808249,0.00054353,39981.0,39980.0,1.42317398]